{"text_format":"1","workbook":"xlsx","n_sheets":1,"sheets":["Types_of_Numbers"],"not_rendered":{"charts":0,"images":0,"macros":1,"external_links":0,"defined_names":3,"comments":0,"pivot_tables":0},"unopened":[],"bounds":{"document_bytes":16777216,"sheet_cells":100000,"rows_first":2000,"rows_last":500,"rows_between":2000,"halvings":0,"cell_chars":16384,"cell_head_chars":4096},"cells_cut":0,"cells_raw":0,"read":"whole","date_system":"1900"}

{"sheet":"Types_of_Numbers","index":0,"n_rows":42,"n_cols":36,"rows_kept":42,"cut":false,"hidden":false,"merged":[[39,9,39,10],[31,10,31,11],[23,19,23,21],[23,23,23,26],[29,19,29,21],[29,23,29,26],[30,10,30,11],[17,19,17,21],[17,23,17,26],[35,23,35,26],[37,9,37,10],[38,9,38,10],[1,1,3,32],[5,19,5,21],[5,23,5,26],[11,19,11,21],[11,23,11,26]]}
[]
[null,"Level 3 Maths - Types of Numbers                                                                                                                                                                   Created by Mr.Lafferty@mathsrevision.com  "]
[]
[]
[]
[null,"Q1.   Find the HCF for the numbers given below.",null,null,null,null,null,null,null,null,null,null,null,null,null,null,null,null,null,"answer",null,null,null,null,null,null,null,null,null,null,null,null,{"$f":"GCD(E8,I8)","v":12},null,null,{"$f":"ROUND(RAND()*(10-1)+1,0)","v":4}]
[]
[null,null,null,null,{"$f":"AJ6*ROUND(RAND()*(20-2)+2,0)","v":60},null,"and",null,{"$f":"AJ6*ROUND(RAND()*(10-1)+1,0)","v":12}]
[]
[]
[]
[null,"Q2.   Find the LCM for the numbers given below.",null,null,null,null,null,null,null,null,null,null,null,null,null,null,null,null,null,"answer",null,null,null,null,null,null,null,null,null,null,null,null,{"$f":"LCM(E14,I14)","v":10}]
[null,null,null,null,null,null,null,null,null,null,null,null,null,null,null,null,null,null,null,null,null,null,null,null,null,null,null,null,null,null,null,null,null,null,null,{"$f":"ROUND(RAND()*(4-1)+1,0)","v":2}]
[null,null,null,null,{"$f":"AJ13*ROUND(RAND()*(6-1)+1,0)","v":10},null,"and",null,{"$f":"AJ13*ROUND(RAND()*(6-1)+1,0)","v":2}]
[]
[]
[]
[null,"Q3.   Find the HCF for the numbers given below.",null,null,null,null,null,null,null,null,null,null,null,null,null,null,null,null,null,"answer",null,null,null,null,null,null,null,null,null,null,null,null,{"$f":"GCD(E20,I20,M20)","v":12}]
[null,null,null,null,null,null,null,null,null,null,null,null,null,null,null,null,null,null,null,null,null,null,null,null,null,null,null,null,null,null,null,null,null,null,null,{"$f":"ROUND(RAND()*(10-1)+1,0)","v":6}]
[null,null,null,null,{"$f":"AJ19*ROUND(RAND()*(20-2)+2,0)","v":120},null,null,null,{"$f":"AJ19*ROUND(RAND()*(20-2)+2,0)","v":108},null,"and",null,{"$f":"AJ19*ROUND(RAND()*(10-1)+1,0)","v":24}]
[]
[]
[]
[null,"Q4.   Find the LCM for the numbers given below.",null,null,null,null,null,null,null,null,null,null,null,null,null,null,null,null,null,"answer",null,null,null,null,null,null,null,null,null,null,null,null,{"$f":"LCM(E26,I26,M26)","v":60}]
[null,null,null,null,null,null,null,null,null,null,null,null,null,null,null,null,null,null,null,null,null,null,null,null,null,null,null,null,null,null,null,null,null,null,null,{"$f":"ROUND(RAND()*(10-1)+1,0)","v":10}]
[null,null,null,null,{"$f":"AJ25*ROUND(RAND()*(5-1)+1,0)","v":30},null,null,null,{"$f":"AJ25*ROUND(RAND()*(6-1)+1,0)","v":10},null,"and",null,{"$f":"AJ25*ROUND(RAND()*(7-1)+1,0)","v":20}]
[]
[]
[]
[null,"Q5.   Two toy racing cars race round a track.",null,null,null,null,null,null,null,null,null,null,null,null,null,null,null,null,null,"answer",null,null,null,null,null,null,null,"seconds",null,null,null,null,{"$f":"LCM(K31,K32)","v":16}]
[null,null,null,"Car A can complete a lap in",null,null,null,null,null,null,{"$f":"AJ31*ROUND(RAND()*(5-1)+1,0)","v":16},null,"seconds",null,null,null,null,null,null,null,null,null,null,null,null,null,null,null,null,null,null,null,null,null,null,{"$f":"ROUND(RAND()*(5-1)+1,0)","v":4}]
[null,null,null,"Car B can complete a lap in",null,null,null,null,null,null,{"$f":"AJ31*ROUND(RAND()*(5-1)+1,0)","v":4},null,"seconds"]
[null,null,null,"If they start at the same time, when is the next time they cross the start line together. "]
[]
[]
[null,"Q6.   In a long distance endurance race ",null,null,null,null,null,null,null,null,null,null,null,null,null,null,null,null,null,"answer",null,null,null,null,null,null,null,"minutes",null,null,null,null,{"$f":"LCM(J38,J39,J40)","v":8},null,null,{"$f":"ROUND(RAND()*(10-1)+1,0)","v":2}]
[]
[null,null,"Ryan can complete a lap in",null,null,null,null,null,null,{"$f":"AJ36*ROUND(RAND()*(4-1)+1,0)","v":8},null,"minutes"]
[null,null,"Daniel can complete a lap in",null,null,null,null,null,null,{"$f":"AJ36*ROUND(RAND()*(4-1)+1,0)","v":2},null,"minutes"]
[null,null,"Connor can complete a lap in",null,null,null,null,null,null,{"$f":"AJ36*ROUND(RAND()*(4-1)+1,0)","v":4},null,"minutes"]
[]
[null,null,"If they all start at the same time, when is the next time they all cross the start line together. "]